[Event "African Games-chT 2019"]
[Site "Casablanca"]
[Date "2019.08.24"]
[Round "1"]
[White "Asante Debesai Zerabruk"]
[Black "Makoto, Rodwell"]
[Result "0-1"]
[ECO "C72"]
[WhiteElo "1712"]
[BlackElo "2373"]
[Annotator "NA"]
[PlyCount "70"]
[EventDate "2019.08.24"]
[EventType "team-tourn"]
[EventCountry "MAR"]
[SourceTitle "playchess.com"]
[Source "ChessBase"]
[SourceQuality "1"]
[WhiteTeam "Eritrea"]
[BlackTeam "Zimbabwe"]
[WhiteTeamCountry "ERI"]
[BlackTeamCountry "ZIM"]
[TimeControl "900+10"]

1. e4 {[%emt 0:00:00]} e5 {[%emt 0:00:00]} 2. Nf3 {[%emt 0:00:00]} Nc6 {[%emt 0:00:00]} 3. Bb5 {[%emt 0:00:00]} a6 {[%emt 0:00:00]} 4. Ba4 {[%emt 0:00:00]} d6 {[%emt 0:00:00]} 5. O-O {[%emt 0:00:00]} Bd7 {[%emt 0:00:00]} 6. c3 {[%emt 0:00:04]} g6 {[%emt 0:00:00]} 7. h3 {[%emt 0:00:11]} Bg7 {[%emt 0:00:01]} 8. Re1 {[%emt 0:00:09]} Nf6 {[%emt 0:00:02]} 9. d4 {[%emt 0:00:04]} O-O {[%emt 0:00:11]} 10. Bc2 {[%emt 0:00:18]} Re8 {[%emt 0:00:55]} 11. Nbd2 {[%emt 0:00:15]} h6 {[%emt 0:00:07]} 12. Nf1 {[%emt 0:00:08]} Nh5 {[%emt 0:00:29]} 13. Be3 {[%emt 0:02:02]} Qe7 {[%emt 0:02:39]} 14. Qd2 {[%emt 0:01:34]} g5 {[%emt 0:00:22]} 15. Ng3 {[%emt 0:00:59]} Nf4 {[%emt 0:00:21]} 16. Nf5 {[%emt 0:00:48]} Bxf5 {[%emt 0:00:03]} 17. exf5 {[%emt 0:00:02]} Qf6 {[%emt 0:00:17]} 18. d5 {[%emt 0:05:08]} Ne7 {[%emt 0:00:19]} 19. Be4 {[%emt 0:00:01]} Nxf5 {[%emt 0:00:18]} 20. Qc2 {[%emt 0:00:10]} Ne7 {[%emt 0:00:13]} 21. Rad1 {[%emt 0:01:45]} Neg6 {[%emt 0:00:14]} 22. Kh2 {[%emt 0:00:52]} Nf8 {[%emt 0:00:31]} 23. g3 {[%emt 0:00:24]} N4g6 {[%emt 0:00:02]} 24. Kg2 {[%emt 0:00:08]} Qd8 {[%emt 0:00:30]} 25. a3 {[%emt 0:00:19]} Ne7 {[%emt 0:00:03]} 26. Nh2 {[%emt 0:00:35]} Qd7 {[%emt 0:00:08]} 27. g4 {[%emt 0:00:20]} Nfg6 {[%emt 0:00:01]} 28. f3 {[%emt 0:00:41]} Rf8 {[%emt 0:00:19]} 29. Bxg6 {[%emt 0:01:17]} Nxg6 {[%emt 0:00:02]} 30. Rf1 {[%emt 0:00:56]} f5 {[%emt 0:00:04]} 31. Rf2 {[%emt 0:00:13]} Rae8 {[%emt 0:00:08]} 32. Nf1 {[%emt 0:00:14]} e4 {[%emt 0:00:07]} 33. fxe4 {[%emt 0:00:31]} fxg4 {[%emt 0:00:03]} 34. hxg4 {[%emt 0:00:10]} Qxg4+ {[%emt 0:00:10]} 35. Ng3 {[%emt 0:00:10]} Nf4+ {[%emt 0:00:10]} 0-1

[Event "African Games-chT 2019"]
[Site "Casablanca"]
[Date "2019.08.24"]
[Round "1"]
[White "Koualet-Bebondi, Vianney Archeveq"]
[Black "Khetho, Phemelo"]
[Result "0-1"]
[ECO "B02"]
[WhiteElo "1679"]
[BlackElo "2178"]
[Annotator "NA"]
[PlyCount "70"]
[EventDate "2019.08.24"]
[EventType "team-tourn"]
[EventCountry "MAR"]
[SourceTitle "playchess.com"]
[Source "ChessBase"]
[SourceQuality "1"]
[WhiteTeam "CAF"]
[BlackTeam "Botswana"]
[BlackTeamCountry "BOT"]
[TimeControl "900+10"]

1. e4 {[%emt 0:00:00]} e5 {[%emt 0:00:00]} 2. d3 {[%emt 0:00:03]} Nf6 {[%emt 0:00:17]} 3. Bd2 {[%emt 0:00:07]} d5 {[%emt 0:00:05]} 4. Qe2 {[%emt 0:00:40]} Nc6 {[%emt 0:00:41]} 5. c3 {[%emt 0:00:10]} Be7 {[%emt 0:00:26]} 6. h3 {[%emt 0:00:14]} dxe4 {[%emt 0:00:24]} 7. dxe4 {[%emt 0:00:05]} a6 {[%emt 0:00:34]} 8. Nf3 {[%emt 0:00:14]} O-O {[%emt 0:00:10]} 9. Bg5 {[%emt 0:00:17]} h6 {[%emt 0:00:06]} 10. Bxf6 {[%emt 0:00:03]} Bxf6 {[%emt 0:00:01]} 11. Qc2 {[%emt 0:00:11]} Be6 {[%emt 0:00:06]} 12. Be2 {[%emt 0:00:11]} Qe7 {[%emt 0:00:44]} 13. O-O {[%emt 0:00:12]} g5 {[%emt 0:00:06]} 14. Nh2 {[%emt 0:00:08]} Bg7 {[%emt 0:00:03]} 15. Nd2 {[%emt 0:00:16]} Rad8 {[%emt 0:00:11]} 16. b3 {[%emt 0:01:21]} Qc5 {[%emt 0:00:49]} 17. Qb2 {[%emt 0:01:05]} Ne7 {[%emt 0:01:01]} 18. b4 {[%emt 0:00:07]} Qc6 {[%emt 0:00:08]} 19. Kh1 {[%emt 0:00:16]} Ng6 {[%emt 0:00:03]} 20. Bg4 {[%emt 0:00:33]} Nf4 {[%emt 0:01:06]} 21. Bxe6 {[%emt 0:00:18]} Qxe6 {[%emt 0:00:03]} 22. f3 {[%emt 0:00:14]} Ne2 {[%emt 0:00:19]} 23. Rf2 {[%emt 0:00:32]} Nf4 {[%emt 0:00:17]} 24. Qc2 {[%emt 0:00:40]} Rd7 {[%emt 0:00:21]} 25. Ng4 {[%emt 0:00:22]} Rfd8 {[%emt 0:00:02]} 26. Ne3 {[%emt 0:00:14]} Rd3 {[%emt 0:00:32]} 27. Rd1 {[%emt 0:00:19]} Rxe3 {[%emt 0:00:06]} 28. c4 {[%emt 0:00:51]} Red3 {[%emt 0:00:14]} 29. Kh2 {[%emt 0:00:28]} Qb6 {[%emt 0:00:19]} 30. Kg1 {[%emt 0:01:01]} Qxb4 {[%emt 0:00:22]} 31. Kf1 {[%emt 0:00:09]} Bf8 {[%emt 0:00:14]} 32. Rb1 {[%emt 0:00:32]} Qd6 {[%emt 0:00:27]} 33. Nb3 {[%emt 0:00:18]} Rd1+ {[%emt 0:00:04]} 34. Rxd1 {[%emt 0:00:43]} Qxd1+ {[%emt 0:00:03]} 35. Qxd1 {[%emt 0:00:02]} Rxd1# {[%emt 0:00:02]} 0-1

[Event "African Games-chT 2019"]
[Site "Casablanca"]
[Date "2019.08.24"]
[Round "1"]
[White "Tjaronda, Nicola"]
[Black "Mayar ElIdrissi, Firdaous"]
[Result "0-1"]
[ECO "B50"]
[WhiteElo "1545"]
[BlackElo "1760"]
[Annotator "NA"]
[PlyCount "62"]
[EventDate "2019.08.24"]
[EventType "team-tourn"]
[EventCountry "MAR"]
[SourceTitle "playchess.com"]
[Source "ChessBase"]
[SourceQuality "1"]
[WhiteTeam "Namibia"]
[BlackTeam "Morocco"]
[WhiteTeamCountry "NAM"]
[BlackTeamCountry "MAR"]
[TimeControl "900+10"]

1. e4 {[%emt 0:00:00]} c5 {[%emt 0:00:00]} 2. Nf3 {[%emt 0:00:00]} d6 {[%emt 0:00:00]} 3. Bc4 {[%emt 0:00:02]} Nf6 {[%emt 0:00:00]} 4. Nc3 {[%emt 0:00:03]} Nc6 {[%emt 0:00:00]} 5. O-O {[%emt 0:00:02]} e6 {[%emt 0:00:00]} 6. Re1 {[%emt 0:00:02]} Be7 {[%emt 0:00:00]} 7. a3 {[%emt 0:00:01]} O-O {[%emt 0:00:01]} 8. d3 {[%emt 0:00:12]} a6 {[%emt 0:00:01]} 9. Bg5 {[%emt 0:00:19]} b5 {[%emt 0:00:03]} 10. Ba2 {[%emt 0:00:03]} Bb7 {[%emt 0:00:03]} 11. Rb1 {[%emt 0:00:22]} Qc7 {[%emt 0:00:10]} 12. Qd2 {[%emt 0:00:13]} Rad8 {[%emt 0:00:37]} 13. Ne2 {[%emt 0:01:06]} b4 {[%emt 0:00:49]} 14. axb4 {[%emt 0:00:27]} Nxb4 {[%emt 0:00:12]} 15. Bb3 {[%emt 0:00:10]} Ra8 {[%emt 0:00:39]} 16. Ng3 {[%emt 0:00:18]} a5 {[%emt 0:00:05]} 17. Ba4 {[%emt 0:00:29]} Rfb8 {[%emt 0:00:57]} 18. c3 {[%emt 0:00:59]} Nc6 {[%emt 0:00:13]} 19. d4 {[%emt 0:00:29]} cxd4 {[%emt 0:00:17]} 20. cxd4 {[%emt 0:00:03]} Nb4 {[%emt 0:00:22]} 21. Rec1 {[%emt 0:00:47]} Qd8 {[%emt 0:00:57]} 22. Qe3 {[%emt 0:00:51]} Rc8 {[%emt 0:00:58]} 23. b3 {[%emt 0:01:02]} Ba6 {[%emt 0:00:39]} 24. Bxf6 {[%emt 0:00:22]} Bxf6 {[%emt 0:00:14]} 25. e5 {[%emt 0:00:08]} dxe5 {[%emt 0:00:31]} 26. dxe5 {[%emt 0:00:01]} Be7 {[%emt 0:00:53]} 27. Rd1 {[%emt 0:01:06]} Nd5 {[%emt 0:01:17]} 28. Qe4 {[%emt 0:03:38]} Qb6 {[%emt 0:00:36]} 29. Rxd5 {[%emt 0:02:10]} exd5 {[%emt 0:00:16]} 30. Qxd5 {[%emt 0:00:01]} Rc2 {[%emt 0:03:05]} 31. Ne4 {[%emt 0:02:29]} Bc8 {[%emt 0:00:10]} 0-1

[Event "African Games-chT 2019"]
[Site "Casablanca"]
[Date "2019.08.24"]
[Round "1"]
[White "Eshete, Ruth Leykun"]
[Black "Wafa, Shahenda"]
[Result "0-1"]
[ECO "A85"]
[WhiteElo "1495"]
[BlackElo "2139"]
[Annotator "NA"]
[PlyCount "41"]
[EventDate "2019.08.24"]
[EventType "team-tourn"]
[EventCountry "MAR"]
[SourceTitle "playchess.com"]
[Source "ChessBase"]
[SourceQuality "1"]
[WhiteTeam "Ethiopia"]
[BlackTeam "Egypt"]
[WhiteTeamCountry "ETH"]
[BlackTeamCountry "EGY"]
[TimeControl "900+10"]

1. d4 {[%emt 0:00:00]} f5 {[%emt 0:00:00]} 2. c4 {[%emt 0:00:00]} Nf6 {[%emt 0:00:17]} 3. Nc3 {[%emt 0:00:15]} d6 {[%emt 0:00:12]} 4. Nf3 {[%emt 0:00:18]} g6 {[%emt 0:00:19]} 5. Bf4 {[%emt 0:00:34]} Bg7 {[%emt 0:00:44]} 6. e3 {[%emt 0:00:38]} c6 {[%emt 0:01:38]} 7. Be2 {[%emt 0:00:51]} O-O {[%emt 0:00:31]} 8. O-O {[%emt 0:00:19]} Nh5 {[%emt 0:01:57]} 9. Bg3 {[%emt 0:02:21]} Nxg3 {[%emt 0:00:49]} 10. fxg3 {[%emt 0:01:08]} Qc7 {[%emt 0:01:38]} 11. Re1 {[%emt 0:02:34]} e5 {[%emt 0:00:31]} 12. dxe5 {[%emt 0:01:37]} dxe5 {[%emt 0:00:04]} 13. e4 {[%emt 0:00:59]} Qb6+ {[%emt 0:00:57]} 14. Kh1 {[%emt 0:01:32]} Qxb2 {[%emt 0:00:37]} 15. Qc1 {[%emt 0:00:44]} Qxc1 {[%emt 0:00:22]} 16. Raxc1 {[%emt 0:00:35]} Na6 {[%emt 0:00:33]} 17. Red1 {[%emt 0:00:48]} Nc5 {[%emt 0:00:19]} 18. exf5 {[%emt 0:00:49]} Bxf5 {[%emt 0:00:40]} 19. Rf1 {[%emt 0:00:58]} Rad8 {[%emt 0:00:20]} 20. Rcd1 {[%emt 0:00:42]} e4 {[%emt 0:00:08]} 21. Ne1 {[%emt 0:00:10]} 0-1

[Event "African Games-chT 2019"]
[Site "Casablanca"]
[Date "2019.08.24"]
[Round "1"]
[White "Nkhoma, Desiderata"]
[Black "Ogbiyoyo, Perpetual Eloho"]
[Result "0-1"]
[ECO "C50"]
[WhiteElo "1481"]
[BlackElo "1831"]
[Annotator "NA"]
[PlyCount "65"]
[EventDate "2019.08.24"]
[EventType "team-tourn"]
[EventCountry "MAR"]
[SourceTitle "playchess.com"]
[Source "ChessBase"]
[SourceQuality "1"]
[WhiteTeam "MAW"]
[BlackTeam "Nigeria"]
[BlackTeamCountry "NGR"]
[TimeControl "900+10"]

1. e4 {[%emt 0:00:00]} e5 {[%emt 0:00:00]} 2. Nf3 {[%emt 0:00:04]} Nc6 {[%emt 0:00:00]} 3. Bc4 {[%emt 0:00:13]} Bc5 {[%emt 0:00:02]} 4. O-O {[%emt 0:00:12]} Nf6 {[%emt 0:00:04]} 5. Nc3 {[%emt 0:00:53]} O-O {[%emt 0:00:09]} 6. d3 {[%emt 0:00:03]} h6 {[%emt 0:00:10]} 7. Ne2 {[%emt 0:00:10]} d6 {[%emt 0:00:10]} 8. Ng3 {[%emt 0:00:46]} Be6 {[%emt 0:00:46]} 9. Bb3 {[%emt 0:00:22]} Nh7 {[%emt 0:01:13]} 10. c3 {[%emt 0:00:58]} Bxb3 {[%emt 0:00:10]} 11. axb3 {[%emt 0:00:44]} Ne7 {[%emt 0:01:35]} 12. d4 {[%emt 0:00:24]} exd4 {[%emt 0:00:05]} 13. cxd4 {[%emt 0:00:55]} Bb6 {[%emt 0:00:05]} 14. Be3 {[%emt 0:00:44]} Ng6 {[%emt 0:01:05]} 15. Qd3 {[%emt 0:01:21]} Re8 {[%emt 0:01:36]} 16. Qc4 {[%emt 0:00:44]} c6 {[%emt 0:00:53]} 17. h3 {[%emt 0:00:48]} d5 {[%emt 0:00:21]} 18. exd5 {[%emt 0:00:09]} cxd5 {[%emt 0:00:01]} 19. Qd3 {[%emt 0:00:13]} Rc8 {[%emt 0:00:31]} 20. Rac1 {[%emt 0:00:10]} Qf6 {[%emt 0:00:21]} 21. Nh5 {[%emt 0:00:49]} Qe6 {[%emt 0:00:50]} 22. Bf4 {[%emt 0:01:43]} Nf6 {[%emt 0:01:20]} 23. Rfe1 {[%emt 0:01:16]} Rxc1 {[%emt 0:00:39]} 24. Nxf6+ {[%emt 0:00:17]} Qxf6 {[%emt 0:01:22]} 25. Bxc1 {[%emt 0:00:09]} Rxe1+ {[%emt 0:00:06]} 26. Nxe1 {[%emt 0:00:20]} Qxd4 {[%emt 0:00:36]} 27. Qc2 {[%emt 0:01:42]} Qe5 {[%emt 0:00:35]} 28. Nf3 {[%emt 0:00:26]} Qe4 {[%emt 0:00:46]} 29. Qc8+ {[%emt 0:00:29]} Kh7 {[%emt 0:00:14]} 30. Qxb7 {[%emt 0:00:31]} Qe2 {[%emt 0:00:49]} 31. Qxd5 {[%emt 0:01:02]} Qxf2+ {[%emt 0:01:08]} 32. Kh1 {[%emt 0:00:10]} Qf1+ {[%emt 0:00:10]} 33. Kh2 {[%emt 0:00:10]} 0-1

[Event "African Games-chT 2019"]
[Site "Casablanca"]
[Date "2019.08.24"]
[Round "1"]
[White "Beekhy, Aamirah"]
[Black "Mululu Linah"]
[Result "0-1"]
[ECO "D02"]
[WhiteElo "1373"]
[BlackElo "1633"]
[Annotator "NA"]
[PlyCount "56"]
[EventDate "2019.08.24"]
[EventType "team-tourn"]
[EventCountry "MAR"]
[SourceTitle "playchess.com"]
[Source "ChessBase"]
[SourceQuality "1"]
[WhiteTeam "Mauritius"]
[BlackTeam "Zambia"]
[WhiteTeamCountry "MRI"]
[BlackTeamCountry "ZAM"]
[TimeControl "900+10"]

1. d4 {[%emt 0:00:00]} d5 {[%emt 0:00:00]} 2. Nf3 {[%emt 0:00:00]} Nf6 {[%emt 0:00:00]} 3. Bf4 {[%emt 0:00:00]} Bf5 {[%emt 0:00:12]} 4. h3 {[%emt 0:00:09]} e6 {[%emt 0:00:10]} 5. e3 {[%emt 0:00:19]} h6 {[%emt 0:00:18]} 6. Be2 {[%emt 0:00:05]} Bd6 {[%emt 0:00:02]} 7. Bxd6 {[%emt 0:01:42]} Qxd6 {[%emt 0:00:09]} 8. O-O {[%emt 0:00:12]} O-O {[%emt 0:00:03]} 9. c4 {[%emt 0:00:27]} c5 {[%emt 0:00:26]} 10. cxd5 {[%emt 0:01:31]} Nxd5 {[%emt 0:00:20]} 11. Qb3 {[%emt 0:01:23]} b6 {[%emt 0:01:25]} 12. Nc3 {[%emt 0:00:50]} Nxc3 {[%emt 0:00:19]} 13. bxc3 {[%emt 0:00:46]} Nd7 {[%emt 0:01:00]} 14. Rfd1 {[%emt 0:00:16]} Qe7 {[%emt 0:00:06]} 15. Rd2 {[%emt 0:01:30]} Rac8 {[%emt 0:01:38]} 16. Rad1 {[%emt 0:00:51]} Rc7 {[%emt 0:00:18]} 17. Bb5 {[%emt 0:01:01]} Nf6 {[%emt 0:00:58]} 18. Ne5 {[%emt 0:01:18]} Be4 {[%emt 0:00:21]} 19. f3 {[%emt 0:01:27]} Bb7 {[%emt 0:00:25]} 20. dxc5 {[%emt 0:00:33]} Qxc5 {[%emt 0:00:09]} 21. Nd7 {[%emt 0:00:58]} Qxe3+ {[%emt 0:01:21]} 22. Kh1 {[%emt 0:00:39]} Nxd7 {[%emt 0:00:49]} 23. Rxd7 {[%emt 0:00:10]} Rxc3 {[%emt 0:01:29]} 24. Qb1 {[%emt 0:01:01]} Bxf3 {[%emt 0:02:31]} 25. Bf1 {[%emt 0:00:54]} Be4 {[%emt 0:00:19]} 26. Qb4 {[%emt 0:00:10]} Qxh3+ {[%emt 0:00:17]} 27. Kg1 {[%emt 0:00:43]} Qe3+ {[%emt 0:00:49]} 28. Kh1 {[%emt 0:00:10]} Rc5 {[%emt 0:00:00]} 0-1

[Event "African Games-chT 2019"]
[Site "Casablanca"]
[Date "2019.08.24"]
[Round "2.3"]
[White "Caxita, Esperanca"]
[Black "Wafa, Shrook"]
[Result "0-1"]
[ECO "B21"]
[WhiteElo "1803"]
[BlackElo "2183"]
[Annotator "NA"]
[PlyCount "60"]
[EventDate "2019.08.24"]
[EventType "team-tourn"]
[EventCountry "MAR"]
[SourceTitle "playchess.com"]
[Source "ChessBase"]
[SourceQuality "1"]
[WhiteTeam "Angola"]
[BlackTeam "Egypt"]
[WhiteTeamCountry "ANG"]
[BlackTeamCountry "EGY"]
[TimeControl "900+10"]

1. e4 {[%emt 0:00:00]} c5 {[%emt 0:00:00]} 2. f4 {[%emt 0:00:00]} Nc6 {[%emt 0:00:00]} 3. Nf3 {[%emt 0:00:00]} g6 {[%emt 0:00:03]} 4. Bb5 {[%emt 0:00:08]} Bg7 {[%emt 0:00:06]} 5. O-O {[%emt 0:00:11]} d6 {[%emt 0:00:15]} 6. Nc3 {[%emt 0:00:56]} Bd7 {[%emt 0:00:35]} 7. Re1 {[%emt 0:01:08]} Nf6 {[%emt 0:00:57]} 8. a3 {[%emt 0:00:31]} O-O {[%emt 0:00:22]} 9. Bc4 {[%emt 0:00:31]} a6 {[%emt 0:00:32]} 10. d3 {[%emt 0:00:56]} b5 {[%emt 0:00:24]} 11. Ba2 {[%emt 0:01:32]} Rc8 {[%emt 0:02:15]} 12. h3 {[%emt 0:00:10]} b4 {[%emt 0:00:10]} 13. axb4 {[%emt 0:00:40]} cxb4 {[%emt 0:00:07]} 14. Nd5 {[%emt 0:00:30]} Nxd5 {[%emt 0:02:15]} 15. Bxd5 {[%emt 0:00:17]} Nd4 {[%emt 0:01:28]} 16. Nxd4 {[%emt 0:01:43]} Bxd4+ {[%emt 0:00:09]} 17. Kh2 {[%emt 0:00:06]} a5 {[%emt 0:00:32]} 18. Bb3 {[%emt 0:01:08]} Qc7 {[%emt 0:01:33]} 19. Ra2 {[%emt 0:01:32]} Be6 {[%emt 0:01:46]} 20. Bxe6 {[%emt 0:01:35]} fxe6 {[%emt 0:00:06]} 21. b3 {[%emt 0:00:01]} Qc5 {[%emt 0:00:30]} 22. Qe2 {[%emt 0:00:56]} Kg7 {[%emt 0:00:49]} 23. g3 {[%emt 0:00:39]} e5 {[%emt 0:00:30]} 24. Rf1 {[%emt 0:01:31]} e6 {[%emt 0:00:22]} 25. Qg4 {[%emt 0:00:31]} Rce8 {[%emt 0:01:13]} 26. Qe2 {[%emt 0:00:48]} Rf7 {[%emt 0:00:23]} 27. Bb2 {[%emt 0:00:16]} Bxb2 {[%emt 0:00:11]} 28. Rxb2 {[%emt 0:00:01]} Ref8 {[%emt 0:00:03]} 29. Qd2 {[%emt 0:00:22]} exf4 {[%emt 0:00:27]} 30. Rbb1 {[%emt 0:01:06]} fxg3+ {[%emt 0:00:13]} 0-1

[Event "African Games-chT 2019"]
[Site "Casablanca"]
[Date "2019.08.24"]
[Round "2.4"]
[White "Wafa, Shahenda"]
[Black "Pires, Luzia"]
[Result "1-0"]
[ECO "B76"]
[WhiteElo "2139"]
[BlackElo "1924"]
[Annotator "NA"]
[PlyCount "93"]
[EventDate "2019.08.24"]
[EventType "team-tourn"]
[EventCountry "MAR"]
[SourceTitle "playchess.com"]
[Source "ChessBase"]
[SourceQuality "1"]
[WhiteTeam "Egypt"]
[BlackTeam "Angola"]
[WhiteTeamCountry "EGY"]
[BlackTeamCountry "ANG"]
[TimeControl "900+10"]

1. e4 {[%emt 0:00:00]} c5 {[%emt 0:00:00]} 2. Nf3 {[%emt 0:00:00]} d6 {[%emt 0:00:00]} 3. d4 {[%emt 0:00:00]} cxd4 {[%emt 0:00:00]} 4. Nxd4 {[%emt 0:00:03]} Nf6 {[%emt 0:00:00]} 5. Nc3 {[%emt 0:00:05]} g6 {[%emt 0:00:00]} 6. Be3 {[%emt 0:00:05]} Bg7 {[%emt 0:00:00]} 7. f3 {[%emt 0:00:03]} O-O {[%emt 0:00:08]} 8. Qd2 {[%emt 0:00:03]} Nc6 {[%emt 0:00:02]} 9. g4 {[%emt 0:00:42]} Nxd4 {[%emt 0:00:40]} 10. Bxd4 {[%emt 0:00:07]} Be6 {[%emt 0:00:06]} 11. h4 {[%emt 0:02:33]} Nd7 {[%emt 0:06:42]} 12. Bxg7 {[%emt 0:01:01]} Kxg7 {[%emt 0:00:07]} 13. h5 {[%emt 0:00:33]} Rh8 {[%emt 0:00:33]} 14. h6+ {[%emt 0:01:33]} Kf8 {[%emt 0:00:14]} 15. O-O-O {[%emt 0:00:23]} Qa5 {[%emt 0:00:33]} 16. a3 {[%emt 0:02:57]} Rc8 {[%emt 0:00:15]} 17. Be2 {[%emt 0:00:56]} Ne5 {[%emt 0:01:37]} 18. Rhg1 {[%emt 0:01:20]} Bc4 {[%emt 0:02:20]} 19. Bxc4 {[%emt 0:03:08]} Nxc4 {[%emt 0:00:08]} 20. Qd5 {[%emt 0:00:54]} Qxd5 {[%emt 0:00:58]} 21. Nxd5 {[%emt 0:00:04]} f6 {[%emt 0:00:20]} 22. a4 {[%emt 0:00:21]} Kf7 {[%emt 0:00:21]} 23. b3 {[%emt 0:00:04]} Ne5 {[%emt 0:00:36]} 24. f4 {[%emt 0:00:08]} Nd7 {[%emt 0:00:13]} 25. g5 {[%emt 0:00:41]} Nc5 {[%emt 0:00:11]} 26. gxf6 {[%emt 0:00:20]} exf6 {[%emt 0:00:08]} 27. Nc3 {[%emt 0:00:20]} Nxb3+ {[%emt 0:00:15]} 28. Kb2 {[%emt 0:00:13]} Na5 {[%emt 0:00:13]} 29. Nb5 {[%emt 0:00:16]} Nc4+ {[%emt 0:00:27]} 30. Kb3 {[%emt 0:00:12]} Rc6 {[%emt 0:00:52]} 31. Nxa7 {[%emt 0:00:21]} Na5+ {[%emt 0:01:05]} 32. Kb4 {[%emt 0:00:19]} Ra6 {[%emt 0:00:01]} 33. Nb5 {[%emt 0:00:05]} Rd8 {[%emt 0:00:26]} 34. Rd5 {[%emt 0:00:13]} Nc6+ {[%emt 0:00:03]} 35. Kb3 {[%emt 0:00:02]} Ne7 {[%emt 0:00:11]} 36. Rd4 {[%emt 0:00:04]} d5 {[%emt 0:00:06]} 37. e5 {[%emt 0:00:08]} Nc6 {[%emt 0:00:06]} 38. Rdd1 {[%emt 0:00:20]} fxe5 {[%emt 0:00:02]} 39. fxe5 {[%emt 0:00:01]} Nxe5 {[%emt 0:00:02]} 40. Rgf1+ {[%emt 0:00:01]} Kg8 {[%emt 0:00:04]} 41. Rde1 {[%emt 0:00:13]} Ng4 {[%emt 0:00:25]} 42. Re7 {[%emt 0:00:06]} Rf6 {[%emt 0:00:15]} 43. Rxf6 {[%emt 0:00:11]} Nxf6 {[%emt 0:00:01]} 44. Rxb7 {[%emt 0:00:01]} Ng4 {[%emt 0:00:01]} 45. a5 {[%emt 0:00:05]} Nxh6 {[%emt 0:00:04]} 46. a6 {[%emt 0:00:01]} Nf5 {[%emt 0:00:06]} 47. a7 {[%emt 0:00:01]} 1-0

[Event "African Games-chT 2019"]
[Site "Casablanca"]
[Date "2019.08.24"]
[Round "2.5"]
[White "Hamdouchi, Hicham"]
[Black "Zaibi, Amir"]
[Result "0-1"]
[ECO "B47"]
[WhiteElo "2562"]
[BlackElo "2367"]
[Annotator "ChessBase"]
[PlyCount "131"]
[EventDate "2019.08.24"]
[EventType "team-tourn"]
[EventCountry "MAR"]
[SourceTitle "playchess.com"]
[Source "ChessBase"]
[SourceQuality "1"]
[WhiteTeam "Morocco"]
[BlackTeam "Tunisia"]
[WhiteTeamCountry "MAR"]
[BlackTeamCountry "TUN"]
[TimeControl "900+10"]

1. e4 {[%emt 0:00:00]} c5 {[%emt 0:00:00]} 2. Nc3 {[%emt 0:00:05]} e6 {[%emt 0:00:00]} 3. Nge2 {[%emt 0:00:08]} Nc6 {[%emt 0:00:02]} 4. d4 {[%emt 0:00:08]} cxd4 {[%emt 0:00:01]} 5. Nxd4 {[%emt 0:00:01]} Qc7 {[%emt 0:00:01]} 6. g3 {[%emt 0:00:13]} a6 {[%emt 0:00:04]} 7. Bg2 {[%emt 0:00:02]} h5 {[%emt 0:00:02]} 8. Nf3 {[%emt 0:01:24]} Nf6 {[%emt 0:00:31]} 9. O-O {[%emt 0:00:11]} b5 {[%emt 0:00:18]} 10. Qe2 {[%emt 0:00:29]} Bb7 {[%emt 0:00:06]} 11. Bf4 {[%emt 0:00:57]} d6 {[%emt 0:01:01]} 12. Rad1 {[%emt 0:01:54]} Ne5 {[%emt 0:00:50]} 13. a3 {[%emt 0:00:18]} Be7 {[%emt 0:00:14]} 14. h3 {[%emt 0:00:22]} Rc8 {[%emt 0:00:05]} 15. Nd4 {[%emt 0:00:22]} Nc4 {[%emt 0:02:49]} 16. Bc1 {[%emt 0:00:03]} Qb6 {[%emt 0:00:39]} 17. Rfe1 {[%emt 0:00:27]} Nd7 {[%emt 0:01:09]} 18. b3 {[%emt 0:02:47]} Nce5 {[%emt 0:00:11]} 19. Bb2 {[%emt 0:00:17]} g5 {[%emt 0:00:25]} 20. f4 {[%emt 0:01:15]} h4 {[%emt 0:01:24]} 21. fxe5 {[%emt 0:02:19]} dxe5 {[%emt 0:00:04]} 22. Nd5 {[%emt 0:00:02]} exd5 {[%emt 0:00:52]} 23. exd5 {[%emt 0:00:02]} hxg3 {[%emt 0:01:28]} 24. Kh1 {[%emt 0:02:28]} Qg6 {[%emt 0:04:17]} 25. Nc6 {[%emt 0:01:05]} Rxc6 {[%emt 0:00:24]} 26. dxc6 {[%emt 0:00:10]} Bxc6 {[%emt 0:00:02]} 27. Kg1 {[%emt 0:00:05]} Bc5+ {[%emt 0:00:41]} 28. Bd4 {[%emt 0:00:06]} Bxd4+ {[%emt 0:00:03]} 29. Rxd4 {[%emt 0:00:01]} Bxg2 {[%emt 0:00:01]} 30. Kxg2 {[%emt 0:00:17]} O-O {[%emt 0:00:47]} 31. Rd3 {[%emt 0:00:41]} f5 {[%emt 0:00:36]} 32. Qd2 {[%emt 0:00:23]} Nf6 {[%emt 0:00:30]} 33. Rd6 {[%emt 0:00:02]} f4 {[%emt 0:00:04]} 34. Rxe5 {[%emt 0:00:09]} f3+ {[%emt 0:00:10]} 35. Kxg3 {[%emt 0:00:10]} f2 {[%emt 0:00:33]} 36. Kxf2 {[%emt 0:01:04]} Ne4+ {[%emt 0:00:07]} 37. Kg2 {[%emt 0:00:01]} Qxd6 {[%emt 0:00:07]} 38. Rxg5+ {[%emt 0:00:02]} Kh7 {[%emt 0:00:19]} 39. Rh5+ {[%emt 0:00:01]} Kg7 {[%emt 0:00:05]} 40. Qxd6 {[%emt 0:00:36]} Nxd6 {[%emt 0:00:01]} 41. Rd5 {[%emt 0:00:02]} Rf6 {[%emt 0:00:03]} 42. Rc5 {[%emt 0:00:18]} Nf5 {[%emt 0:00:08]} 43. c4 {[%emt 0:00:14]} bxc4 {[%emt 0:00:11]} 44. bxc4 {[%emt 0:00:01]} Ne3+ {[%emt 0:00:10]} 45. Kg3 {[%emt 0:00:02]} Kg6 {[%emt 0:00:02]} 46. Rc8 {[%emt 0:00:05]} Nf1+ {[%emt 0:00:12]} 47. Kg2 {[%emt 0:00:03]} Ne3+ {[%emt 0:00:03]} 48. Kg3 {[%emt 0:00:00]} Nf5+ {[%emt 0:00:05]} 49. Kg2 {[%emt 0:00:05]} Kg5 {[%emt 0:00:04]} 50. c5 {[%emt 0:00:11]} Kf4 {[%emt 0:00:30]} 51. Kf2 {[%emt 0:00:13]} Nd4 {[%emt 0:00:06]} 52. h4 {[%emt 0:00:40]} Rh6 {[%emt 0:00:21]} 53. Rd8 {[%emt 0:00:20]} Ke5 {[%emt 0:00:02]} 54. Kg3 {[%emt 0:00:24]} Nf5+ {[%emt 0:00:03]} 55. Kg4 {[%emt 0:00:01]} Rxh4+ {[%emt 0:00:10]} 56. Kg5 {[%emt 0:00:00]} Rh7 {[%emt 0:00:02]} 57. Re8+ {[%emt 0:00:24]} Re7 {[%emt 0:00:05]} 58. Rg8 {[%emt 0:00:15]} Rg7+ {[%emt 0:00:09]} 59. Rxg7 {[%emt 0:00:02]} Nxg7 {[%emt 0:00:01]} 60. Kg6 {[%emt 0:00:11]} Ne6 {[%emt 0:00:05]} 61. c6 {[%emt 0:00:01]} Kd6 {[%emt 0:00:01]} 62. Kf6 {[%emt 0:00:01]} Nc7 {[%emt 0:00:02]} 63. Kf5 {[%emt 0:00:07]} Kxc6 {[%emt 0:00:02]} 64. Ke4 {[%emt 0:00:01]} Kb5 {[%emt 0:00:03]} 65. Kd3 {[%emt 0:00:01]} Ka4 {[%emt 0:00:00]} 66. Kd4 0-1